Cogmind - Beta 16.1 @@@ ROGUE MODE // 2026.02.18 @ 21:37:58 Player: SunShine214 Result: Destroyed by B-99 Colossus with Multirail Performance ------------- Evolutions (9) 4500 Regions Visited (18) 3600 Robots Destroyed (102) 510 Value Destroyed (3204) 3204 Prototype IDs (35) 700 Alien Tech Used (0) 0 Bonus (1018) 1018 TOTAL SCORE: 13532 Bonus ------- High Alert Combat Kills 218 Entered DSFs 500 Aligned with FarCom 300 Cogmind --------- Core Integrity 0/1600 Matter 175/300 Energy 149/150 System Corruption 33% Temperature Cool (2) Movement Flying (110) Ox1 Location -1/Access Parts ------- > --- POWER (2) -------- Micro Antimatter Reactor > --- PROPULSION (7) --- Experimental Q-thruster > --- UTILITY (12) ----- Enhanced Optical Array Hacking Suite Improved Hacking Suite System Shield > --- WEAPON (4) ------- (None) > --- INVENTORY (5) ---- Field Propulsion Array Enhanced Hardcell Cannon Peak State ------------ > --- POWER ------------ Micro Nuclear Core Micro Nuclear Core > --- PROPULSION ------- Nuclear Pulse Array Nuclear Pulse Array Experimental Q-thruster Experimental Q-thruster Experimental Q-thruster > --- UTILITY ---------- Small Storage Unit Enhanced Optical Array Improved Sensor Array Advanced Signal Interpreter Experimental Targeting Computer Core Analyzer Improved Propulsion Shielding Layered Medium Armor Plating Hacking Suite Hacking Suite Hacking Suite Hacking Suite > --- WEAPON ----------- Quantum Rifle Phasing Sabre Phasing Sabre > --- INVENTORY -------- Nuclear Pulse Array Layered Medium Armor Plating YOLO Cannon Fusion Bomb Launcher [Rating: 130] Favorites ----------- Power Micro Nuclear Core Engine Improved Ion Engine Power Core Micro Nuclear Core Reactor Micro Antimatter Reactor Propulsion Aluminum Leg Treads Light Treads Leg Aluminum Leg Flight Unit Xenon Bombardment Thruster Utility Hacking Suite Device Transmission Jammer Storage Small Storage Unit Processor Improved Terrain Scan Processor Hackware Hacking Suite Protection Utility Shielding Weapon Phasing Sabre Energy Gun Small Laser Energy Cannon YOLO Cannon Ballistic Gun Light Assault Rifle Ballistic Cannon Mini Assault Cannon Launcher Grenade Launcher Impact Weapon Impact Mace Slashing Weapon Phasing Sabre Build | -11 -10 -10 -9 -9 -9 -8 -8 -7 -6 -6 -5 -5 -5 -4 -3 -3 -2 -1 ------- Run | Yrd Mat Min Mat Min Exi Min Mat Fac Fac Ext Fac Was Fac Fac Res DSF Res Acc Slots Evolved 18 | . . . 2 . . . 2 2 2 . 2 . . 2 2 . 2 2 Power 1 | . . . . . . . . . . . 1 . . . . . . . Propulsion 5 | . . . . . . . 2 . 1 . 1 . . . . . . 1 Utility 10 | . . . 2 . . . . 2 1 . . . . 2 . . 2 1 Weapon 2 | . . . . . . . . . . . . . . . 2 . . . Parts Attached 135 | 7 6 2 5 5 1 . 18 36 3 3 9 . . 2 . 2 14 22 Power 14 | 1 1 1 1 . . . 1 3 . . 1 . . 1 . . 1 3 Engine 4 | 1 1 1 1 . . . . . . . . . . . . . . . Core 5 | . . . . . . . 1 3 . . 1 . . . . . . . Reactor 5 | . . . . . . . . . . . . . . 1 . . 1 3 Propulsion 46 | 2 . 1 1 3 . . 12 9 . 1 4 . . . . 1 4 8 Treads 6 | 2 . . . . . . 3 1 . . . . . . . . . . Leg 8 | . . 1 1 3 . . 3 . . . . . . . . . . . Wheel . | . . . . . . . . . . . . . . . . . . . Hover . | . . . . . . . . . . . . . . . . . . . Flight 32 | . . . . . . . 6 8 . 1 4 . . . . 1 4 8 Utility 44 | 2 2 . 2 . 1 . 2 13 1 . 4 . . 1 . . 8 8 Device 10 | 1 . . . . . . . 2 . . 3 . . . . . 3 1 Storage 3 | 1 1 . . . 1 . . . . . . . . . . . . . Processor 10 | . . . . . . . . 4 1 . 1 . . . . . 2 2 Hackware 8 | . . . . . . . 1 1 . . . . . . . . 2 4 Protection 13 | . 1 . 2 . . . 1 6 . . . . . 1 . . 1 1 Artifact . | . . . . . . . . . . . . . . . . . . . Weapon 31 | 2 3 . 1 2 . . 3 11 2 2 . . . . . 1 1 3 Energy Gun 11 | 1 2 . 1 . . . 2 3 . . . . . . . 1 . 1 Energy Cannon 2 | . . . . . . . 1 . . . . . . . . . . 1 Ballistic Gun 5 | 1 1 . . . . . . 2 . . . . . . . . . 1 Ballistic Cannon 2 | . . . . . . . . 1 1 . . . . . . . . . Launcher 2 | . . . . 1 . . . . . . . . . . . . 1 . Special Weapon . | . . . . . . . . . . . . . . . . . . . Impact Weapon 5 | . . . . . . . . 5 . . . . . . . . . . Slashing Weapon 4 | . . . . 1 . . . . 1 2 . . . . . . . . Piercing Weapon . | . . . . . . . . . . . . . . . . . . . Special Melee Weapon . | . . . . . . . . . . . . . . . . . . . Unidentified Prototypes 12 | . . . . . . . . 7 1 . . . . . . . 2 2 Corrupted Parts 1 | . . . . . . . . 1 . . . . . . . . . . System Corruption 1 | . . . . . . . . 1 . . . . . . . . . . Parts Lost 64 | . 1 2 2 3 . . 15 11 . 1 . . . . . 1 . 28 Power 6 | . . 1 . . . . 1 1 . . . . . . . . . 3 Propulsion 24 | . . 1 1 1 . . 9 6 . . . . . . . . . 6 Utility 21 | . . . 1 1 . . 1 3 . 1 . . . . . 1 . 13 Weapon 13 | . 1 . . 1 . . 4 1 . . . . . . . . . 6 Highest Loss Streak 9 | . 1 1 1 2 . . 9 6 . 1 . . . . . 1 . 7 To Critical Strikes . | . . . . . . . . . . . . . . . . . . . Average Backups 6 | 2 7 8 7 7 8 9 4 6 7 6 6 7 7 6 7 7 6 4 Power . | . 1 1 1 1 1 1 1 . 1 1 . . . . 1 1 . . Propulsion 2 | 1 3 3 3 4 5 4 1 . 2 1 1 3 3 3 3 3 2 1 Utility 1 | . 1 3 1 1 1 2 1 2 2 2 2 2 2 1 1 1 1 . Weapon 1 | . 1 1 2 1 1 2 1 2 2 2 2 2 2 2 2 2 2 1 Tool/Special . | . . . . . . . . . . . . . . . . . . . Unused Backups 20 | . 8 . 1 2 . . . 6 . . . . . . . 2 . 1 Power 2 | . . . 1 . . . . 1 . . . . . . . . . . Propulsion 9 | . 6 . . 1 . . . 1 . . . . . . . 1 . . Utility 3 | . 1 . . . . . . 2 . . . . . . . . . . Weapon 6 | . 1 . . 1 . . . 2 . . . . . . . 1 . 1 Tool/Special . | . . . . . . . . . . . . . . . . . . . Average Slot Usage (%) 81 | . 100 94 96 84 77 77 75 75 89 96 87 94 94 89 80 79 77 71 Engine 4 | . 14 11 11 11 11 11 . . . . . . . . . . . . Core 3 | . . . . . . . 2 6 6 6 7 11 11 9 9 9 7 3 Treads 4 | . 28 14 3 . . . 13 1 . . . . . . . . . . Leg 6 | . . 9 17 21 22 22 13 . . . . . . . . . . . Flight 12 | . . . . . . . 4 23 26 29 29 29 29 26 23 22 17 17 Device 2 | . 9 . . . . . . 4 . . 2 5 5 5 4 4 6 1 Storage 8 | . 14 14 11 11 11 11 9 7 6 6 5 5 5 5 4 4 4 3 Processor 8 | . . . . . . . . 13 23 26 17 17 17 15 14 14 17 13 Hackware 4 | . . . . . . . 8 2 6 6 5 5 5 5 4 4 9 16 Protection 8 | . 5 14 30 19 11 11 11 2 6 6 5 5 5 10 9 9 4 4 Energy Gun 6 | . 14 14 18 16 11 11 11 1 . . . . . . . . . 2 Ballistic Gun 1 | . 14 14 3 . . . . . . . . . . . . . . . Impact Weapon 2 | . . . . . . . . 7 13 5 . . . . . . . . Slashing Weapon 3 | . . . . 4 11 11 1 . . 7 11 11 11 10 9 9 8 5 Peak Build Rating 130 | 7 8 8 11 13 15 14 26 52 56 61 81 78 78 85 82 90 115 130 Average Rating 40 | 4 7 7 10 11 12 14 16 36 54 58 65 78 78 81 82 82 100 110 On Entrance 44 | . 7 8 8 11 12 14 14 12 52 56 57 78 78 78 82 82 82 108 Avg Prop Armor Cover (%) 8 | . . 6 5 . . . 6 11 . . . . . . . . . . Naked Turns . | . . . . . . . . . . . . . . . . . . . Heaviest Build 43 | 14 20 20 26 27 22 22 20 20 20 21 32 28 28 35 35 35 36 43 Greatest Support 62 | 40 40 20 20 20 20 20 62 40 26 33 39 36 36 36 36 37 42 51 Greatest Overweight (x) 4 | . . 1 2 2 1 1 2 4 . . . . . . . . . . Average Overweight (x) . | . . . 1 1 1 1 . . . . . . . . . . . . Largest Inventory Capacity 10 | 8 10 10 10 10 10 10 10 10 8 8 8 8 8 8 8 8 8 8 Average Capacity 8 | 7 8 10 10 10 10 10 10 8 8 8 8 8 8 8 8 8 8 7 Most Carried 10 | 5 8 9 10 9 10 10 10 10 8 8 8 8 8 8 8 8 8 8 Average Carried 7 | 2 7 8 7 7 9 10 5 7 8 7 7 8 8 7 8 7 7 6 Final Capacity 10 | 8 10 10 10 10 10 10 10 8 8 8 8 8 8 8 8 8 8 5 Final Carried 10 | 5 8 9 8 9 10 10 6 8 8 7 8 8 8 8 8 8 8 3 Class Distribution -------------------- 43% | Mutant 27% | Sprinter 10% | Hacker-Scout 9% | Scavenger-Mutant 6% | Hacker-Sprinter Dominant Class ---------------- Mutant | -10/Materials Mutant | -10/Mines Scavenger-Mutant | -9/Materials Mutant | -9/Mines Mutant | -9/Exiles Mutant | -8/Mines Scavenger-Mutant | -8/Materials Sprinter | -7/Factory Sprinter | -6/Factory Sprinter | -6/Extension Sprinter | -5/Factory Scout | -5/Waste Scout | -5/Factory Scout | -4/Factory Scout | -3/Research Scout | -3/DSF Hacker-Scout | -2/Research Hacker-Sprinter | -1/Access Resources | -11 -10 -10 -9 -9 -9 -8 -8 -7 -6 -6 -5 -5 -5 -4 -3 -3 -2 -1 ----------- Run | Yrd Mat Min Mat Min Exi Min Mat Fac Fac Ext Fac Was Fac Fac Res DSF Res Acc Matter Collected 1860 | 203 168 24 56 115 . 10 180 296 190 37 161 . . 47 . 3 209 161 Remotely . | . . . . . . . . . . . . . . . . . . . Salvage Created 3738 | 104 440 76 199 296 . 81 547 379 287 35 344 . . 148 . . 104 698 Parts 190 | 6 38 4 7 19 . 9 27 8 6 . 12 . . 8 . . 9 37 Haulers Intercepted 7 | . 1 . . . . . . 2 2 . 2 . . . . . . . Recyclers Shooed 5 | 1 2 . . 2 . . . . . . . . . . . . . . Parts Field Recycled . | . . . . . . . . . . . . . . . . . . . Retrieved Matter . | . . . . . . . . . . . . . . . . . . . Parts Self-Destructed . | . . . . . . . . . . . . . . . . . . . Prevented . | . . . . . . . . . . . . . . . . . . . Parts Restored . | . . . . . . . . . . . . . . . . . . . Kills | -11 -10 -10 -9 -9 -9 -8 -8 -7 -6 -6 -5 -5 -5 -4 -3 -3 -2 -1 ------- Run | Yrd Mat Min Mat Min Exi Min Mat Fac Fac Ext Fac Was Fac Fac Res DSF Res Acc Combat Hostiles Destroyed 62 | . 12 2 4 8 . 1 14 7 1 . . . . . . . . 13 Melee 10 | . . . . 4 . 1 . 2 . . . . . . . . . 3 Guns 23 | . 10 2 4 . . . 7 . . . . . . . . . . . Cannons 4 | . . . . . . . 1 . . . . . . . . . . 3 AOE 19 | . 2 . . 4 . . 6 . . . . . . . . . . 7 Classes Destroyed 15 | 2 6 . 1 1 . . 2 1 . . . . . . . . . 2 Worker 7 | . 1 . . . . . 1 1 . . . . . 1 . . 2 1 Builder 1 | . 1 . . . . . . . . . . . . . . . . . Tunneler 6 | 2 . . . . . 3 . 1 . . . . . . . . . . Hauler 7 | . 1 . . . . . . 2 2 . 2 . . . . . . . Recycler 5 | 1 1 . . 1 . . . . . . 1 . . 1 . . . . Operator 6 | . 1 . . . . . . 1 . . 1 . . . . . 2 1 Watcher 7 | . . . 1 . . . . . 2 1 . . . . . . 1 2 Swarmer 19 | . 6 . . 3 . 1 6 3 . . . . . . . . . . Cutter 5 | . . . . . . . . . . . . . . . . . . 5 Grunt 23 | . 6 2 4 4 . . 5 2 . . . . . . . . . . Duelist 1 | . . . . 1 . . . . . . . . . . . . . . Researcher 1 | . . . . . . . . . . . . . . . . . . 1 Sentry 3 | . . . . . . . 2 . 1 . . . . . . . . . Hunter 1 | . . . . . . . 1 . . . . . . . . . . . Programmer 10 | . . . . . . . . 2 . . . . . . . . . 8 Best Kill Streak 9 | 2 9 1 2 6 . 2 5 3 3 1 3 . . 1 . . 2 4 Combat Bots Only 9 | . 9 1 2 5 . 1 5 3 1 . . . . . . . . 4 Max Kills in Single Turn 5 | 2 2 1 1 3 . 1 5 1 1 1 1 . . 1 . . 1 2 Gunslinging . | . . . . . . . . . . . . . . . . . . . Exploded 5 | . 1 . . 3 . . 5 . . . . . . . . . . 2 Melee 1 | . . . . 1 . 1 . 1 . . . . . . . . . 1 Uniques/NPCs Destroyed . | . . . . . . . . . . . . . . . . . . . Combat | -11 -10 -10 -9 -9 -9 -8 -8 -7 -6 -6 -5 -5 -5 -4 -3 -3 -2 -1 -------- Run | Yrd Mat Min Mat Min Exi Min Mat Fac Fac Ext Fac Was Fac Fac Res DSF Res Acc Hostile Shots Fired 896 | . 67 28 32 26 . 4 149 227 . 32 . . . . . 6 . 325 Missed 349 | . 20 11 9 6 . 2 33 96 . 15 . . . . . 3 . 154 Hits 547 | . 47 17 23 20 . 2 116 131 . 17 . . . . . 3 . 171 Melee 15 | . . . . 1 . . . . . . . . . . . . . 14 Projectile 532 | . 47 17 23 19 . 2 116 131 . 17 . . . . . 3 . 157 AOE 6 | . . . . . . . . 1 . . . . . . . . . 5 Critical Strikes 25 | . . . . . . . 3 1 . 1 . . . . . . . 20 Actively Blocked 2 | . . . . . . . 1 . . . . . . . . . . 1 Damage Taken 9432 | . 538 209 313 287 . 16 1552 1407 . 254 . . . . . 176 . 4680 Core 2800 | . 79 21 47 40 . . 440 397 . 166 . . . . . . . 1610 Absorbed by Shields . | . . . . . . . . . . . . . . . . . . . Redirected to Shielding 287 | . . . 8 . . . 38 32 . 27 . . . . . 71 . 111 Regen/Repaired (Parts) 25 | . . . . . . . . . . . 25 . . . . . . . Core Remaining (%) 78 | 100 . 60 . . . 78 20 43 . 80 . . 100 100 . 100 100 . Volleys Fired 156 | 5 61 12 18 6 . . 26 16 . . . . . . . . . 12 Largest 2 | 2 2 2 2 2 . . 2 1 . . . . . . . . . 1 Hottest 110 | 60 60 60 85 75 . . 110 55 . . . . . . . . . 110 Shots Fired 269 | 10 121 25 34 7 . . 44 17 . . . . . . . . . 11 Gun 250 | 10 121 25 34 1 . . 42 17 . . . . . . . . . . Cannon 9 | . . . . . . . 1 . . . . . . . . . . 8 Launcher 10 | . . . . 6 . . 1 . . . . . . . . . . 3 Special . | . . . . . . . . . . . . . . . . . . . Kinetic 83 | 5 61 13 . . . . . 4 . . . . . . . . . . Thermal 123 | . 49 12 16 . . . 31 8 . . . . . . . . . 7 Explosive 10 | . . . . 6 . . 1 . . . . . . . . . . 3 Electromagnetic 53 | 5 11 . 18 1 . . 12 5 . . . . . . . . . 1 Robot Hit Streak 14 | 4 14 8 7 1 . . 10 6 . . . . . . . . . 6 Robot Miss Streak 4 | 1 4 2 3 3 . . 1 2 . . . . . . . . . 4 Penetration Max . | . . . . . . . . . . . . . . . . . . . Secondary Targets 4 | . 3 . 1 . . . . . . . . . . . . . . . Max Gunslinging Chain 1 | . 1 . 1 . . . . . . . . . . . . . . . Shots Hit Robots 277 | 8 83 19 20 9 . 6 39 37 9 2 5 . . 2 . . 7 31 Core Hits 133 | 4 33 6 12 11 . 3 24 5 2 . 4 . . 2 . . 4 23 Critical Kills 1 | . . . . . . . . . 1 . . . . . . . . . Critical Parts Destroyed 8 | . 1 . . . . . . 5 2 . . . . . . . . . Critical Strikes 17 | . 1 . 1 2 . . 2 5 3 . . . . . . . . 3 Destroy 1 | . 1 . . . . . . . . . . . . . . . . . Corrupt 2 | . . . 1 . . . 1 . . . . . . . . . . . Smash 8 | . . . . . . . . 5 3 . . . . . . . . . Sever 6 | . . . . 2 . . 1 . . . . . . . . . . 3 Melee Attacks 231 | . . . . 13 . 6 7 90 23 5 13 . . 2 . . 22 50 Impact 115 | . . . . . . . . 90 23 2 . . . . . . . . Slashing 116 | . . . . 13 . 6 7 . . 3 13 . . 2 . . 22 50 Piercing . | . . . . . . . . . . . . . . . . . . . Sneak Attacks 24 | . . . . . . 4 . 4 4 1 4 . . 2 . . 2 3 Combat Hostiles . | . . . . . . . . . . . . . . . . . . . Follow-up Attacks 9 | . . . . . . . . 3 3 . 1 . . . . . 1 1 Damage Inflicted 10135 | 137 897 186 339 512 . 343 1161 1499 606 172 443 . . 177 . . 423 3240 Guns 1994 | 99 793 186 281 . . . 464 171 . . . . . . . . . . Cannons 794 | . . . . . . . 134 . . . . . . . . . . 660 Explosions 2045 | 38 102 . 50 270 . . 403 . . . . . . . . . . 1182 Melee 5191 | . . . . 236 . 343 155 1328 606 172 443 . . 177 . . 423 1308 Ramming 111 | . 2 . 8 6 . . 5 . . . . . . . . . . 90 Kinetic 487 | 44 325 88 . . . . . 30 . . . . . . . . . . Thermal 2657 | 38 477 98 174 . . . 559 94 . . . . . . . . . 1217 Explosive 1152 | . . . . 270 . . 264 . . . . . . . . . . 618 Electromagnetic 537 | 55 93 . 157 . . . 178 47 . . . . . . . . . 7 Impact 2014 | . . . . . . . . 1328 606 80 . . . . . . . . Slashing 3177 | . . . . 236 . 343 155 . . 92 443 . . 177 . . 423 1308 Piercing . | . . . . . . . . . . . . . . . . . . . Highest Corruption 33 | . 1 1 . . . . . 8 . . 1 11 11 . . 1 2 33 Average Corruption 5 | . 1 1 . . . . . 3 . . 1 2 11 . . 1 1 15 Corruption Purged . | . . . . . . . . . . . . . . . . . . . Corruption Blocked . | . . . . . . . . . . . . . . . . . . . Effects 75 | . . 1 . . . . . 27 . . 2 . . . . . 2 43 Message Errors 11 | . . . . . . . . 6 . . . . . . . . . 5 Matter Fused 13 | . . . . . . . . 8 . . . . . . . . 2 3 Heat Flow Errors 12 | . . . . . . . . 2 . . 1 . . . . . . 9 Energy Discharges 7 | . . . . . . . . 2 . . 1 . . . . . . 4 Parts Rejected 3 | . . . . . . . . 1 . . . . . . . . . 2 Data Loss (minor) 10 | . . . . . . . . 6 . . . . . . . . . 4 Data Loss (major) 1 | . . . . . . . . 1 . . . . . . . . . . Misfires 2 | . . 1 . . . . . 1 . . . . . . . . . . Alerts 2 | . . . . . . . . . . . . . . . . . . 2 Misdirections 13 | . . . . . . . . . . . . . . . . . . 13 Weapon Failures 1 | . . . . . . . . . . . . . . . . . . 1 Overload Shots . | . . . . . . . . . . . . . . . . . . . Overflow Damage 1498 | 18 18 . . . . 87 69 638 177 52 . . . . . . 59 380 Projectiles 227 | . . . . . . . . . . . . . . . . . . 227 Explosions 141 | 18 18 . . . . . 31 . . . . . . . . . . 74 Melee 1130 | . . . . . . 87 38 638 177 52 . . . . . . 59 79 Knockbacks 2 | . . . . . . . . 2 . . . . . . . . . . Impact 2 | . . . . . . . . 2 . . . . . . . . . . Kinetic . | . . . . . . . . . . . . . . . . . . . Secondary . | . . . . . . . . . . . . . . . . . . . Self-Inflicted Damage 669 | . 18 . . 51 . . 110 . . . . . . . . . . 490 Shots 11 | . 1 . . 2 . . 3 . . . . . . . . . . 5 Rammed 5 | . 4 . . . . . 1 . . . . . . . . . . . Targets Rammed 12 | . 5 . 1 4 . . 2 . . . . . . . . . . . Kicked 6 | . . . 1 4 . . 1 . . . . . . . . . . . Crushed 1 | . 1 . . . . . . . . . . . . . . . . . Highest Temperature 369 | 40 165 255 313 18 . . 188 157 . 369 229 42 46 33 . . . 272 Average Temperature 69 | 17 43 126 113 12 . . 63 53 . 363 107 21 24 12 . . . 71 Received Heat Transfer 1839 | . 195 123 153 99 . . 540 243 . 378 . . . . . . . 108 Effects 10 | . . 2 . . . . . . . . 4 . . . . . . 4 Energy Bleed 2 | . . . . . . . . . . . 1 . . . . . . 1 Interference 8 | . . 2 . . . . . . . . 3 . . . . . . 3 Siege Activations . | . . . . . . . . . . . . . . . . . . . Martial Activations . | . . . . . . . . . . . . . . . . . . . Shielding Activations . | . . . . . . . . . . . . . . . . . . . Robots Disrupted . | . . . . . . . . . . . . . . . . . . . Combat Hostiles . | . . . . . . . . . . . . . . . . . . . Robots Corrupted 9 | . . . . . . . . 6 2 1 . . . . . . . . Combat Hostiles 5 | . . . . . . . . 5 . . . . . . . . . . Parts Fried 11 | . . . . . . . 1 5 3 2 . . . . . . . . Impact Corruptions 24 | . . . . . . . . 19 3 2 . . . . . . . . Robots Melted . | . . . . . . . . . . . . . . . . . . . Combat Hostiles . | . . . . . . . . . . . . . . . . . . . Parts Melted 3 | . . 1 . . . . 2 . . . . . . . . . . . Heat Transferred 3329 | 50 950 225 375 . . . 824 185 . . . . . . . . . 720 Parts Sabotaged . | . . . . . . . . . . . . . . . . . . . Parts Stolen . | . . . . . . . . . . . . . . . . . . . Parts Stripped . | . . . . . . . . . . . . . . . . . . . Power Chain Reactions 5 | 1 2 . 1 . . . 1 . . . . . . . . . . . Alert | -11 -10 -10 -9 -9 -9 -8 -8 -7 -6 -6 -5 -5 -5 -4 -3 -3 -2 -1 ------- Run | Yrd Mat Min Mat Min Exi Min Mat Fac Fac Ext Fac Was Fac Fac Res DSF Res Acc Maximum Alert Level 3 | . 1 . . 1 . . . . 1 . . . . . . . . 3 Low Security (%) 88 | 100 90 100 100 77 . 100 100 100 5 100 100 100 100 100 100 100 100 55 Level 1 6 | . 9 . . 22 . . . . 94 . . . . . . . . 7 Level 2 2 | . . . . . . . . . . . . . . . . . . 21 Level 3 2 | . . . . . . . . . . . . . . . . . . 15 Level 4 . | . . . . . . . . . . . . . . . . . . . Level 5 . | . . . . . . . . . . . . . . . . . . . High Security . | . . . . . . . . . . . . . . . . . . . Max Security . | . . . . . . . . . . . . . . . . . . . Peak Influence 850 | 10 234 30 44 227 . 75 117 157 290 157 45 . . 20 5 3 42 850 Initial 135 | . . . . 9 . . . . 66 135 40 . . . 5 3 . 15 Average 79 | 1 90 8 12 85 . 11 60 50 254 59 14 . . 2 5 2 11 253 Influence Increases 4063 | 15 326 50 124 331 . 90 463 553 302 135 79 . . 25 . . 144 1426 Destroy 0b10 Robot/C 1260 | . 240 40 80 160 . 20 280 140 20 . . . . . . . . 280 Destroy 0b10 Robot/NC 195 | 15 25 . 5 5 . 15 5 25 20 5 20 . . 10 . . 25 20 Destroy Leader 306 | . 52 10 22 20 . 10 70 32 8 2 4 . . . . . 2 74 Allied During Kill 8 | . . . . . . . . . . . . . . . . . . 8 Successful Hack 183 | . . . . 6 . . 7 38 18 36 . . . . . . 42 36 Disable Machine 240 | . . . 15 90 . . 15 15 15 15 15 . . . . . . 60 Anti-Garrison Action 200 | . . . . . . . . . 200 . . . . . . . . . Destroy Structure 411 | . 9 . 2 20 . . 11 48 6 2 10 . . . . . 30 273 Partial Spotted 105 | . . . . . . . . 15 . . . . . 15 . . 15 60 Lose Combat Pursuer 1155 | . . . . 30 . 45 75 240 15 75 30 . . . . . 30 615 Influence Decreases 3277 | 15 326 50 100 168 187 90 463 417 160 330 162 . . 15 5 5 118 666 Entered New Map 476 | . . . . 15 187 . . . 70 143 43 . . . 5 2 . 11 Time Decay 1943 | 15 316 40 90 123 . 90 242 370 90 30 119 . . 15 . . 118 285 Search Patrol Dispatched 100 | . . . . . . . . . . . . . . . . . . 100 Lost Part 500 | . 10 10 10 30 . . 120 37 . 10 . . . . . 3 . 270 Lost Ally 10 | . . . . . . . . 10 . . . . . . . . . . Purge Threat 248 | . . . . . . . 101 . . 147 . . . . . . . . Squads Dispatched 26 | . 2 . . . . . 2 6 2 . 1 . . . . . 6 7 Investigation 11 | . 1 . . . . . 2 . 2 . 1 . . . . . 4 1 Extermination 9 | . . . . . . . . 4 . . . . . . . . 1 4 Reinforcement 6 | . 1 . . . . . . 2 . . . . . . . . 1 2 Assault . | . . . . . . . . . . . . . . . . . . . Garrison . | . . . . . . . . . . . . . . . . . . . Intercept . | . . . . . . . . . . . . . . . . . . . Searches Triggered 1 | . . . . . . . . . . . . . . . . . . 1 Construction Impeded . | . . . . . . . . . . . . . . . . . . . Haulers Reinforced . | . . . . . . . . . . . . . . . . . . . Active Scanning Responses . | . . . . . . . . . . . . . . . . . . . Cargo Convoy Interrupts . | . . . . . . . . . . . . . . . . . . . Stealth | -11 -10 -10 -9 -9 -9 -8 -8 -7 -6 -6 -5 -5 -5 -4 -3 -3 -2 -1 --------- Run | Yrd Mat Min Mat Min Exi Min Mat Fac Fac Ext Fac Was Fac Fac Res DSF Res Acc Distress Signals 14 | . . . 1 . . . 4 . 1 . 1 . . . . . 2 5 Communications Jammed . | . . . . . . . . . . . . . . . . . . . Distress Signals . | . . . . . . . . . . . . . . . . . . . Times Spotted 215 | . 16 2 12 11 . 4 26 30 5 16 4 4 . . . 2 9 74 Peak Tracking Total 18 | . 4 2 4 4 . 4 8 5 3 12 3 5 . . . 3 4 18 Tactical Retreats 35 | . . . . 1 . 1 4 12 1 1 1 . . . . . 2 12 Traps | -11 -10 -10 -9 -9 -9 -8 -8 -7 -6 -6 -5 -5 -5 -4 -3 -3 -2 -1 ------- Run | Yrd Mat Min Mat Min Exi Min Mat Fac Fac Ext Fac Was Fac Fac Res DSF Res Acc Traps Triggered 9 | . 3 . . . . . . 4 . . 1 . . . . . . 1 Indirectly . | . . . . . . . . . . . . . . . . . . . Trap Hack Attempts . | . . . . . . . . . . . . . . . . . . . Triggered . | . . . . . . . . . . . . . . . . . . . Disarmed . | . . . . . . . . . . . . . . . . . . . Reprogrammed . | . . . . . . . . . . . . . . . . . . . Reused . | . . . . . . . . . . . . . . . . . . . Traps Extracted . | . . . . . . . . . . . . . . . . . . . Installed . | . . . . . . . . . . . . . . . . . . . Triggered . | . . . . . . . . . . . . . . . . . . . Machines | -11 -10 -10 -9 -9 -9 -8 -8 -7 -6 -6 -5 -5 -5 -4 -3 -3 -2 -1 ---------- Run | Yrd Mat Min Mat Min Exi Min Mat Fac Fac Ext Fac Was Fac Fac Res DSF Res Acc Machines Disabled 17 | . . . 2 6 . . 1 1 1 1 1 . . . . . . 4 Max in Single Turn 2 | . . . 1 2 . . 1 1 1 1 1 . . . . . . 1 Garrison Access 4 | . . . . . . . 1 2 1 . . . . . . . . . Machines Repaired . | . . . . . . . . . . . . . . . . . . . Machines Dismantled . | . . . . . . . . . . . . . . . . . . . Machines Sabotaged . | . . . . . . . . . . . . . . . . . . . Overloaded Fab Kills . | . . . . . . . . . . . . . . . . . . . Hacking | -11 -10 -10 -9 -9 -9 -8 -8 -7 -6 -6 -5 -5 -5 -4 -3 -3 -2 -1 --------- Run | Yrd Mat Min Mat Min Exi Min Mat Fac Fac Ext Fac Was Fac Fac Res DSF Res Acc Machines Accessed 69 | . 5 . 1 1 1 . 7 14 8 5 8 . . . 1 . 9 9 Terminals 47 | . 3 . . 1 . . 6 6 4 5 7 . . . 1 . 6 8 Fabricators 7 | . . . . . . . . 3 2 . . . . . . . 1 1 Repair Stations 2 | . . . . . . . . 1 . . 1 . . . . . . . Recycling Units 2 | . 2 . . . . . . . . . . . . . . . . . Scanalyzers 5 | . . . 1 . . . . 2 1 . . . . . . . 1 . Garrison Access 5 | . . . . . . . 1 2 1 . . . . . . . 1 . Total Hacks 128 | . 11 . 2 1 1 . 16 24 19 7 11 . . . 2 . 20 14 Successful 47 | . 1 . 1 1 1 . 3 9 10 4 3 . . . 1 . 9 4 Failed 80 | . 10 . 1 . . . 13 14 9 3 8 . . . 1 . 11 10 Catastrophic 26 | . 4 . . . . . 4 4 1 1 5 . . . . . 5 2 Database Lockouts 1 | . . . . . . . . 1 . . . . . . . . . . Manual 51 | . 7 . . 1 1 . 8 8 7 1 3 . . . . . 10 5 Terminals 91 | . 7 . . 1 . . 15 9 12 7 9 . . . 2 . 16 13 Fabricators 10 | . . . . . . . . 6 2 . . . . . . . 1 1 Repair Stations 3 | . . . . . . . . 1 . . 2 . . . . . . . Recycling Units 4 | . 4 . . . . . . . . . . . . . . . . . Scanalyzers 9 | . . . 2 . . . . 4 1 . . . . . . . 2 . Garrison Access 10 | . . . . . . . 1 4 4 . . . . . . . 1 . Terminal Hacks 23 | . . . . 1 1 . 2 2 4 4 1 . . . 1 . 4 3 Record 2 | . . . . . . . . . . . . . . . . . . 2 Part Schematic 2 | . . . . . . . . . 2 . . . . . . . . . Robot Analysis 2 | . . . . . . . . . . . . . . . . . 1 1 Open Door 3 | . . . . . . . . . 1 2 . . . . . . . . Open DSF 2 | . . . . . . . . . . . 1 . . . 1 . . . Level Access Points 2 | . . . . . . . . 1 . . . . . . . . 1 . Branch Access Points 4 | . . . . . . . 1 1 1 1 . . . . . . . . Alert Level 1 | . . . . . . . . . . . . . . . . . 1 . Unreport Threat 2 | . . . . . . . 1 . . 1 . . . . . . . . Recall Investigation 1 | . . . . . . . . . . . . . . . . . 1 . Zone Layout 1 | . . . . 1 . . . . . . . . . . . . . . Proto ID Catalog 1 | . . . . . 1 . . . . . . . . . . . . . Fabricator Hacks 6 | . . . . . . . . 2 2 . . . . . . . 1 1 Network Status 4 | . . . . . . . . 2 1 . . . . . . . 1 . Build 2 | . . . . . . . . . 1 . . . . . . . . 1 Repair Station Hacks 2 | . . . . . . . . . . . 2 . . . . . . . Scan Component 1 | . . . . . . . . . . . 1 . . . . . . . Repair 1 | . . . . . . . . . . . 1 . . . . . . . Recycling Unit Hacks . | . . . . . . . . . . . . . . . . . . . Scanalyzer 5 | . . . 1 . . . . 2 1 . . . . . . . 1 . Retrieve Study 5 | . . . 1 . . . . 2 1 . . . . . . . 1 . Garrison Access Hacks 3 | . . . . . . . 1 2 . . . . . . . . . . Seal Access 3 | . . . . . . . 1 2 . . . . . . . . . . Unauthorized Hacks 8 | . 1 . . . . . . 1 3 . . . . . . . 3 . Terminals 6 | . . . . . . . . 1 2 . . . . . . . 3 . Assimilate 5 | . . . . . . . . 1 1 . . . . . . . 3 . Botnet 1 | . . . . . . . . . 1 . . . . . . . . . Fabricators . | . . . . . . . . . . . . . . . . . . . Repair Stations . | . . . . . . . . . . . . . . . . . . . Recycling Units 1 | . 1 . . . . . . . . . . . . . . . . . Recyclers 1 | . 1 . . . . . . . . . . . . . . . . . Scanalyzers . | . . . . . . . . . . . . . . . . . . . Garrison Access 1 | . . . . . . . . . 1 . . . . . . . . . Jam 1 | . . . . . . . . . 1 . . . . . . . . . Data Cores Recovered 1 | . . . . . . . . . . . 1 . . . . . . . Used . | . . . . . . . . . . . . . . . . . . . Hacking Detections 56 | . 5 . 1 1 . . 5 9 6 4 7 . . . . . 9 9 Full Trace Events 13 | . 3 . . . . . 3 . 1 . 1 . . . . . 4 1 Feedback Events 3 | . . . . . . . . . . . 1 . . . . . 2 . Corruption 3 | . . . . . . . . . . . 1 . . . . . 2 . Feedback Blocked . | . . . . . . . . . . . . . . . . . . . Robot Schematics Acquired . | . . . . . . . . . . . . . . . . . . . Robots Built 1 | . . . . . . . . . . . . . . . . . . 1 Authchips . | . . . . . . . . . . . . . . . . . . . Time 74 | . . . . . . . . . . . . . . . . . . 74 Total Robot Build Rating 9 | . . . . . . . . . . . . . . . . . . 9 Part Schematics Acquired 2 | . . . . . . . . . 2 . . . . . . . . . Parts Built . | . . . . . . . . . . . . . . . . . . . Authchips . | . . . . . . . . . . . . . . . . . . . Time 117 | . . . . . . . . . 117 . . . . . . . . . Total Part Build Rating . | . . . . . . . . . . . . . . . . . . . Part Studies Acquired 5 | . . . 1 . . . . 2 1 . . . . . . . 1 . Parts Repaired 1 | . . . . . . . . . . . 1 . . . . . . . Time 44 | . . . . . . . . . . . 44 . . . . . . . Parts Recycled . | . . . . . . . . . . . . . . . . . . . Recycled Matter . | . . . . . . . . . . . . . . . . . . . Retrieved Matter . | . . . . . . . . . . . . . . . . . . . Retrieved Components . | . . . . . . . . . . . . . . . . . . . Parts Scanalyzed . | . . . . . . . . . . . . . . . . . . . Part Schematics Acquired . | . . . . . . . . . . . . . . . . . . . Parts Damaged . | . . . . . . . . . . . . . . . . . . . Bothacking | -11 -10 -10 -9 -9 -9 -8 -8 -7 -6 -6 -5 -5 -5 -4 -3 -3 -2 -1 ------------ Run | Yrd Mat Min Mat Min Exi Min Mat Fac Fac Ext Fac Was Fac Fac Res DSF Res Acc Used RIF Installer . | . . . . . . . . . . . . . . . . . . . Robots Hacked . | . . . . . . . . . . . . . . . . . . . Non-combat . | . . . . . . . . . . . . . . . . . . . Combat . | . . . . . . . . . . . . . . . . . . . Robot Hacks Applied . | . . . . . . . . . . . . . . . . . . . Relay Couplers Released 4 | . . . . . . . 1 . . . . . . . . . . 3 Machine Destruction 1 | . . . . . . . 1 . . . . . . . . . . . Programmers 3 | . . . . . . . . . . . . . . . . . . 3 Fabnet Peak Effective % . | . . . . . . . . . . . . . . . . . . . Robots Rewired . | . . . . . . . . . . . . . . . . . . . Allies Hacked 3 | . . . . . . . . . . . . . . . . . . 3 Hacks Repelled . | . . . . . . . . . . . . . . . . . . . Allies | -11 -10 -10 -9 -9 -9 -8 -8 -7 -6 -6 -5 -5 -5 -4 -3 -3 -2 -1 -------- Run | Yrd Mat Min Mat Min Exi Min Mat Fac Fac Ext Fac Was Fac Fac Res DSF Res Acc Total Allies 5 | . . . . . . . . 1 1 2 . . . . . . . 1 Largest Group 2 | . . . . . . . . 1 1 2 . . . . . . . 1 Highest-Rated Group 70 | . . . . . . . . 10 10 70 . . . . . . . 62 Highest-Rated Ally 62 | . . . . . . . . 10 10 39 . . . . . . . 62 Total Orders . | . . . . . . . . . . . . . . . . . . . Ally Attacks 4 | . . . . . . . . . . 2 . . . . . . . 2 Total Damage 29 | . . . . . . . . . . 29 . . . . . . . . Kills . | . . . . . . . . . . . . . . . . . . . Allies Corrupted . | . . . . . . . . . . . . . . . . . . . Allies Melted . | . . . . . . . . . . . . . . . . . . . Intel | -11 -10 -10 -9 -9 -9 -8 -8 -7 -6 -6 -5 -5 -5 -4 -3 -3 -2 -1 ------- Run | Yrd Mat Min Mat Min Exi Min Mat Fac Fac Ext Fac Was Fac Fac Res DSF Res Acc Active Infowar (turns) 2544 | 8 532 . . . . . . 455 . . 11 17 19 66 1 34 422 979 Optics 1135 | . . . . . . . . . . . . . . . . . 156 979 Sensors 1017 | . . . . . . . . . . . 11 17 19 66 1 34 419 450 Terrain 13 | . . . . . . . . 13 . . . . . . . . . . Seismic 540 | 8 532 . . . . . . . . . . . . . . . . . Jamming 455 | . . . . . . . . 455 . . . . . . . . . . Robot Analysis Total 2 | . . . . . . . . . . . . . . . . . 1 1 Derelict Logs Recovered 1 | . . 1 . . . . . . . . . . . . . . . . Drone Launches . | . . . . . . . . . . . . . . . . . . . Drone Recoveries . | . . . . . . . . . . . . . . . . . . . Exploration | -11 -10 -10 -9 -9 -9 -8 -8 -7 -6 -6 -5 -5 -5 -4 -3 -3 -2 -1 ------------- Run | Yrd Mat Min Mat Min Exi Min Mat Fac Fac Ext Fac Was Fac Fac Res DSF Res Acc Turns Passed 8099 | 118 832 192 288 650 459 494 636 2222 197 78 383 17 19 66 1 34 422 991 Spaces Moved 7625 | 59 396 91 108 298 240 138 374 2181 369 216 533 70 77 235 4 110 799 1327 Core 12 | 4 . . . . . . . 8 . . . . . . . . . . Treads 852 | 55 396 73 38 . . . 157 133 . . . . . . . . . . Legs 886 | . . 18 70 298 240 138 122 . . . . . . . . . . . Wheels . | . . . . . . . . . . . . . . . . . . . Hover . | . . . . . . . . . . . . . . . . . . . Flight 5875 | . . . . . . . 95 2040 369 216 533 70 77 235 4 110 799 1327 Fastest Speed 16 | 50 160 160 190 190 190 190 29 27 29 27 24 24 24 24 24 24 21 16 Average Speed 62 | 152 160 165 208 190 190 190 113 48 29 27 25 24 24 24 24 24 23 21 Slowest Speed 260 | 160 160 190 260 260 190 190 200 250 29 29 27 24 24 24 24 28 28 40 Overloaded Moves . | . . . . . . . . . . . . . . . . . . . Propulsion Burnouts . | . . . . . . . . . . . . . . . . . . . Robots Hopped 9 | . . . . . . . . 3 1 . . 1 . . . . 1 3 Potential Cave-ins 2 | . . . . . . . . . . . . . . . . . . 2 Cave-ins Triggered . | . . . . . . . . . . . . . . . . . . . Exploration Rate (%) 37 | 4 62 27 20 77 62 29 35 60 13 40 13 64 4 7 . 91 22 38 Regions Visited 18 Branch Regions 5 Pre-discovered Areas . | . . . . . . . . . . . . . . . . . . . Known Exits Taken 8 | . . . . . . 1 . 1 1 1 . . 1 1 1 . 1 . Unknown Exits Taken 7 | 1 1 1 1 1 1 . 1 . . . . . . . . . . . Scrap Searched 2 | . . . . 1 . 1 . . . . . . . . . . . . Spaces Dug 82 | . . . . 2 . . . 48 6 1 5 . . . . . 10 10 Terrain Destroyed 244 | 7 7 . 2 20 . . 10 48 6 1 5 . . . . . 10 128 Melee 82 | . . . . 2 . . . 48 6 1 5 . . . . . 10 10 Projectile 1 | . . . . . . . . . . . . . . . . . . 1 AOE 161 | 7 7 . 2 18 . . 10 . . . . . . . . . . 117 Terrain Rammed 1 | . . . . . . . . . . . . . . . . . . 1 Walls Destroyed . | . . . . . . . . . . . . . . . . . . . Machines Disabled 1 | . . . . . . . . . . . . . . . . . . 1 Actions | -11 -10 -10 -9 -9 -9 -8 -8 -7 -6 -6 -5 -5 -5 -4 -3 -3 -2 -1 --------- Run | Yrd Mat Min Mat Min Exi Min Mat Fac Fac Ext Fac Was Fac Fac Res DSF Res Acc Total 10314 | 75 492 110 135 350 244 361 524 3176 422 225 763 68 76 239 3 119 1003 1929 Wait 2007 | . 1 5 . 20 . 218 85 787 33 3 206 . . . . . 154 495 Move 7590 | 58 395 90 107 297 239 137 373 2174 366 215 533 67 76 234 3 109 796 1321 Hop 9 | . . . . . . . . 3 1 . . 1 . . . . 1 3 Pick Up 46 | 5 12 1 2 2 1 . 1 15 . . 1 . . . . 2 2 2 Fast Attach 99 | 7 . 2 1 1 1 . 10 36 1 . 2 . . . . 2 12 24 Attach 26 | . 1 . 2 1 . . 9 2 . 1 1 . . 1 . . 1 7 Detach 17 | . . . . . 1 . 5 4 . . 1 . . . . . 1 5 Swap 48 | . 5 . 2 4 . . 4 11 4 2 7 . . 2 . . 5 2 Drop 80 | . 12 . 2 2 2 . 2 31 . . 2 . . . . 6 12 9 Fire 156 | 5 61 12 18 6 . . 26 16 . . . . . . . . . 12 Melee 205 | . . . . 13 . 6 7 82 17 4 10 . . 2 . . 19 45 Ram 1 | . . . . . . . . . . . . . . . . . . 1 Kick 6 | . . . 1 4 . . 1 . . . . . . . . . . . Crush 6 | . 5 . . . . . 1 . . . . . . . . . . . Escape Stasis 15 | . . . . . . . . 15 . . . . . . . . . . Rewire 3 | . . . . . . . . . . . . . . . . . . 3 Trap . | . . . . . . . . . . . . . . . . . . . Miscellaneous . | . . . . . . . . . . . . . . . . . . . Route ------- -11/Scrapyard -10/Materials (discovered 4 exits: *Mat x2 / [*Min x2]) -10/Mines -9/Materials (discovered 2 exits: Mat / *Min) -9/Mines (discovered 2 exits: *Mat / *Exi) -9/Exiles -8/Mines -8/Materials -7/Factory (discovered 6 exits: *Fac x4 / *Low x2) -6/Factory (discovered 4 exits: *Low x2 / *Ext x2) -6/Extension (discovered 2 exits: *Fac / Cet) -5/Factory -5/Waste -5/Factory -4/Factory (discovered 2 exits: *Res x2) -3/Research -3/DSF -2/Research (discovered 3 exits: *Acc x3) -1/Access History --------- Turn | Location | Event 3 | -11/Scrapyard | Discovered new exit (range 15) 119 | -11/Scrapyard | Entered Materials 295 | -10/Materials | Destroyed 9 combat bots 347 | -10/Materials | Build established: Mutant 357 | -10/Materials | Discovered new exit (range 16) 637 | -10/Materials | Discovered new exit (range 11) 756 | -10/Materials | Discovered new exit (range 16) 891 | -10/Materials | Discovered new exit (range 13) 951 | -10/Materials | Entered Mines 1048 | -10/Mines | Learned 4 Materials zone layouts 1074 | -10/Mines | A weapon hastily lodged in a ceiling crevice suddenly fell to the ground 1116 | -10/Mines | Discovered new exit (range 9) 1143 | -10/Mines | Entered Materials 1143 | -9/Materials | Evolved 2 slots: Utility x2 1144 | -9/Materials | Identified exit to Materials 1399 | -9/Materials | Discovered new exit (range 15) 1431 | -9/Materials | Entered Mines 1839 | -9/Mines | Discovered exit to Materials (range 10) 2072 | -9/Mines | Deemed a non-threat by the Exiles lab entrance 2073 | -9/Mines | Discovered new exit (range 5) 2081 | -9/Mines | Entered Exiles 2144 | -9/Exiles | Met 8R-AWN 2167 | -9/Exiles | Met EX-HEX 2233 | -9/Exiles | Met EX-BIN 2260 | -9/Exiles | Aligned with FarCom system 2262 | -9/Exiles | Given EX-Vault access code 2308 | -9/Exiles | Opened EX-Vault 2320 | -9/Exiles | Found YOLO Cannon 2359 | -9/Exiles | Warned to stay clear of 0b10 Research branches 2387 | -9/Exiles | Exiles lab attacked by MAIN.C 2515 | -9/Exiles | Discovered new exit (range 12) 2540 | -9/Exiles | Left Exiles lab with YOLO Cannon 2540 | -9/Exiles | Entered Mines 3026 | -8/Mines | Discovered exit to Materials (range 4) 3034 | -8/Mines | Entered Materials 3034 | -8/Materials | Evolved 2 slots: Propulsion x2 3140 | -8/Materials | Core integrity fell below 50% 3162 | -8/Materials | Lost 9 parts (7n2w) 3412 | -8/Materials | Build established: Scavenger-Mutant 3645 | -8/Materials | Discovered new exit (range 16) 3670 | -8/Materials | Entered Factory 3670 | -7/Factory | Evolved 2 slots: Utility x2 3822 | -7/Factory | Lost 6 parts (3n2u1w) 4096 | -7/Factory | Build established: Sprinter 4197 | -7/Factory | Discovered new exit (range 11) 4277 | -7/Factory | Identified exit to Lower Caves 5150 | -7/Factory | Build established: Mutant 5152 | -7/Factory | Core integrity fell below 50% 5504 | -7/Factory | Build established: Sprinter 5607 | -7/Factory | Identified exit to Factory 5889 | -7/Factory | Central database locked down 5892 | -7/Factory | Entered another Factory area 5892 | -6/Factory | Evolved 2 slots: Propulsion x1, Utility x1 5931 | -6/Factory | Discovered new exit (range 7) 5933 | -6/Factory | Identified exit to Lower Caves 6022 | -6/Factory | Identified exit to Extension 6089 | -6/Factory | Entered Extension 6113 | -6/Extension | Disrupted transfer network 6116 | -6/Extension | Identified exit to Cetus 6151 | -6/Extension | Rescued a captive Derelict 6155 | -6/Extension | Spotted B-75 Beast 6155 | -6/Extension | Rescued a captive Derelict 6162 | -6/Extension | Spotted B-75 Beast 6166 | -6/Extension | Discovered new exit (range 3) 6167 | -6/Extension | Identified exit to Factory 6167 | -6/Extension | Entered Factory 6167 | -5/Factory | Evolved 2 slots: Power x1, Propulsion x1 6452 | -5/Factory | Repaired Xenon Bombardment Thruster+ 6519 | -5/Factory | Discovered new exit (range 15) 6522 | -5/Factory | Identified exit to Upper Caves 6550 | -5/Factory | Sucked down chute 6550 | -5/Factory | Entered Waste 6554 | -5/Waste | Spotted C-40 Crusher 6556 | -5/Waste | Spotted C-40 Crusher 6557 | -5/Waste | Spotted C-40 Crusher 6559 | -5/Waste | Spotted C-40 Crusher 6563 | -5/Waste | Spotted C-40 Crusher 6563 | -5/Waste | Discovered new exit (range 16) 6565 | -5/Waste | EMP discharged 6565 | -5/Waste | System corruption reached 10% 6567 | -5/Waste | Identified exit to Factory 6567 | -5/Waste | Entered Factory 6583 | -5/Factory | Discovered new exit (range 11) 6586 | -5/Factory | Identified exit to Factory 6586 | -5/Factory | Entered another Factory area 6586 | -4/Factory | Evolved 2 slots: Utility x2 6598 | -4/Factory | Discovered new exit (range 5) 6600 | -4/Factory | Identified exit to Research 6604 | -4/Factory | Discovered exit to Research (range 15) 6652 | -4/Factory | Entered Research 6652 | -3/Research | Evolved 2 slots: Weapon x2 6653 | -3/Research | Identified exit to DSF 6653 | -3/Research | Entered DSF 6670 | -3/DSF | Discovered new exit (range 14) 6675 | -3/DSF | Found Fusion Bomb Launcher 6684 | -3/DSF | Additional patrols routed to DSF 6687 | -3/DSF | Identified exit to Research 6687 | -3/DSF | Entered Research 6687 | -2/Research | Evolved 2 slots: Utility x2 6740 | -2/Research | Found Prototype Processor 6740 | -2/Research | Identified Exp. Targeting Computer 6957 | -2/Research | Identified exit to Access 7016 | -2/Research | Found Unknown Device 7016 | -2/Research | Identified Quantum Capacitor 7044 | -2/Research | Build established: Hacker-Scout 7109 | -2/Research | Entered Access 7109 | -1/Access | Evolved 2 slots: Propulsion x1, Utility x1 7209 | -1/Access | Fabricated C-65 Expert (x1) 7554 | -1/Access | P-80 Master assimilated allied *Jerry 7575 | -1/Access | System corruption reached 10% 7596 | -1/Access | Lost 4 parts (1p3u) 7773 | -1/Access | Lost 3 parts (1n1u1w) 7859 | -1/Access | Search patrols dispatched 7866 | -1/Access | Build established: Hacker-Sprinter 7924 | -1/Access | System corruption reached 30% 7981 | -1/Access | Lost 7 parts (1p2n2u2w) 8008 | -1/Access | Core integrity fell below 50% 8018 | -1/Access | Spotted B-99 Colossus 8048 | -1/Access | Core integrity fell below 20% 8058 | -1/Access | Lost 7 parts (1p2n3u1w) 8100 | -1/Access | Destroyed by B-99 Colossus with Multirail Last Messages --------------- 08061_ NDQU3JSV8TJN9 UG,YLZN 08063_ Connecting with Terminal... 08069_ ALERT: Suspicious activity at Terminal A001. Dispatching Investigation squad. 08074_ Scanalyzer disabled. 08075_ Slug penetrates Wall. 08077_ System corrupted: Component data lost. 08079_ Slug penetrates Wall. 08087_ W-44 Eye sends out distress signal. 08088_ Exp. Targeting Computer destroyed. 08092_ System corrupted: IFF burst signal emitted. 08092_ Acquired Enh. Hardcell Cannon. 08096_ Slug penetrates Wall. 08096_ Knocked back. 08100_ Hacking Suite destroyed. 08100_ Nuclear Pulse Array+ destroyed. 08100_ Penetrated by Slug. 08100_ Slug penetrates Wall. 08100_ Penetrated by Slug. Map ----- +----------------------------------------------------+ | ?????# ??????# #######?# ###############???????? | | ?????# ????# # #?# #?????????????????????? | | ?????# ! ??# # #?# #?????????????????????? | | ?????# # # #?# #?????????????????????? | | ?????# ! + # #?# #######"??????????????? | | ?????# # # #?# """T""""??????????????? | | ?????# ??# # #?# """ """"??????????????? | | ?????# ????# # | #?#h "??????????????? | | ############### # #?# "??????????????? | | !!] # #?# "??????????????? | | !]] # #?#h "??????????????? | | !]] # #?# "??????????????? | | " #?#h "??????????????? | | ##+####?# "??????????????? | | #????# "??????????????? | | #????# #######"??????????????? | | #????# #?????????????????????? | | #????#k #?????????????????????? | | #""""###+###### #????????##???????????? | | # # #?????? #???????????? | | # # %# #???? #???????????? | | # # #?? """" =????????????? | | "] # # ""S"" #???????????? | | ;;####;#### %+ " " #???????????? | | # /BB ; # #???????????? | | # #BB ;@ #?? = #??????????? | | #"" ## ## # # Y#???? ##??????????? | | # ## ## # ; #??????####???????????? | | ##### ####### # #?????????????????????? | | #???#+#?????# ; #?????????????????????? | | #???????????# # #????????????????#+???? | | #???????????# ; #????????????????# ??? | | !#????????#########"##"# #????????????????# ?? | | ###????????# ] # #????????????????# ? | | #########??# + ##############???# | | ! #??# "" # # #???# | | #??# "" ??# # #???# | | ###### #??# """""" ???# # #???# | | ####?# #??? """"""????# %# #???# | | = ?# #??#?? "" ?????# # #???# | | # #???? ""??????# p# " #???# | | # #???? ?? ??????# p/ """ #???# | | # ##?????? ???????# # """ #???# | | # #??????????????# # " #???# | | #??????????????#w # #???# | | #??????????????# # = #??### | | ################ # #??#"" " | | ## # #########+####### | | ### # ! # #???????# #???# | | # ! # #???????# #??## | +----------------------------------------------------+ Best States ------------- Heat Dissipation 52 Energy Generation 36 Energy Capacity 375 Matter Stores 300 Matter Capacity 300 Sight Range 22 Robot Scan Range 15 Terrain Scan Range 16 Terrain Scan Density 110 Jamming Range 12 Armor Coverage 450 Propulsion Shielding 66 Utility Shielding 33 Evasion (%) 66 Targeting Accuracy 20 Melee Accuracy 6 Core Analysis 6 Recoil Reduction 3 Kinecelleration 40 Offensive Hacking 42 Defensive Hacking 10 Item Schematics ----------------- Adv. Reaction Control System | -6/Factory | Hacked Imp. Cloaking Device | -6/Factory | Hacked Robot Schematics ------------------ None Fabricated ------------ C-65 Expert | x1 | -1/Access | Preloaded Repaired ---------- Xenon Bombardment Thruster | 16% | -5/Factory Studied --------- Flight Unit | -9/Materials | Hacked VTOL Module | -7/Factory | Hacked Mic. Nuclear Core | -7/Factory | Hacked Xenon Bombardment Thruster | -6/Factory | Hacked Nuclear Pulse Array | -2/Research | Hacked Alien Tech Used ----------------- None Achievements -------------- None Challenges ------------ None Game ------ Seed ShadeSuperquantumMinigun Manual? 0 Play Time 01:23:38 Cumulative 80.9 hours Start 2026.02.18 @ 20:15:42 End 2026.02.18 @ 21:37:58 Sessions 1 Manual Loads 0 Difficulty Rogue Special Mode None Game No. 134 Rogue 134 Adventurer 0 Explorer 0 Win Type - Total 0 Types 0/0/0/0/0/0/0/0/0/0 Lore% 37 Gallery% 46 Achievement% 31 Wizard Run 0 Options --------- Layout 1 ASCII 0 Keyboard 1 Movement Arrows Keybinds 0 Fullscreen 1 Font 24/Smallcaps Map View 50x35 Zoom Use 0% Tactical HUD 1 Map Filters NONE Filters NONE Steam 1 RUN: a6b254db-3be0-493d-bafa-01e486b2e98f